Cogmind - Beta 14 @@@ ROGUE MODE // 2025.03.06 @ 22:03:16 Player: supa Result: Destroyed by G-34 Mercenary with Small Laser Performance ------------- Evolutions (0) 0 Regions Visited (2) 400 Robots Destroyed (13) 65 Value Destroyed (360) 360 Prototype IDs (0) 0 Alien Tech Used (0) 0 Bonus (0) 0 TOTAL SCORE: 825 Bonus ------- None Cogmind --------- Core Integrity 0/250 Matter 278/300 Energy 123/125 System Corruption 0% Temperature Cool (87) Movement Flying (37) Location -10/Mines Parts ------- > --- POWER (1) -------- Light Ion Engine > --- PROPULSION (2) --- Flight Unit Flight Unit > --- UTILITY (2) ------ (None) > --- WEAPON (2) ------- Particle Gun Light Assault Rifle > --- INVENTORY (5) ---- Ion Engine Aluminum Leg Improved Heat Sink Small Laser Grenade Launcher Peak State ------------ > --- POWER ------------ Ion Engine > --- PROPULSION ------- Flight Unit Flight Unit > --- UTILITY ---------- (None) > --- WEAPON ----------- Particle Gun Light Assault Rifle > --- INVENTORY -------- Light Ion Engine Aluminum Leg Improved Heat Sink Small Laser Grenade Launcher [Rating: 6] Favorites ----------- Power Ion Engine Engine Ion Engine Propulsion Compact Wheel Wheel Compact Wheel Flight Unit Flight Unit Utility None Weapon Assault Rifle Energy Gun Medium Laser Ballistic Gun Assault Rifle Launcher Grenade Launcher Build | -11 -10 -10 ------- Run | Yrd Mat Min Slots Evolved . | . . . Power . | . . . Propulsion . | . . . Utility . | . . . Weapon . | . . . Parts Attached 19 | 4 12 3 Power 8 | 2 5 1 Engine 8 | 2 5 1 Core . | . . . Reactor . | . . . Propulsion 4 | 2 2 . Treads . | . . . Leg . | . . . Wheel 2 | 2 . . Hover . | . . . Flight 2 | . 2 . Utility . | . . . Device . | . . . Storage . | . . . Processor . | . . . Hackware . | . . . Protection . | . . . Artifact . | . . . Weapon 7 | . 5 2 Energy Gun 3 | . 1 2 Energy Cannon . | . . . Ballistic Gun 3 | . 3 . Ballistic Cannon . | . . . Launcher 1 | . 1 . Special Weapon . | . . . Impact Weapon . | . . . Slashing Weapon . | . . . Piercing Weapon . | . . . Special Melee Weapon . | . . . Unidentified Prototypes . | . . . Parts Lost 3 | . 2 1 Power 1 | . 1 . Propulsion . | . . . Utility . | . . . Weapon 2 | . 1 1 Highest Loss Streak 2 | . 1 2 To Critical Strikes . | . . . Average Slot Usage (%) 69 | . 69 71 Engine 14 | . 14 14 Wheel 21 | . 24 . Flight 6 | . 3 28 Energy Gun 4 | . 3 12 Ballistic Gun 16 | . 16 16 Launcher 5 | . 6 . Peak Build Rating 6 | 3 5 6 Average Rating 4 | 2 4 5 On Entrance 2 | . 3 5 Naked Turns . | . . . Heaviest Build 10 | 5 10 7 Greatest Support 32 | 32 32 8 Greatest Overweight (x) 1 | . 1 . Average Overweight (x) . | . . . Largest Inventory Capacity 5 | 5 5 5 Average Capacity 5 | 5 5 5 Most Carried 5 | 5 5 5 Average Carried 4 | 4 4 4 Final Capacity 5 | 5 5 5 Final Carried 5 | 5 4 5 Class Distribution -------------------- 100% | Mutant Dominant Class ---------------- Mutant | -10/Materials Mutant | -10/Mines Resources | -11 -10 -10 ----------- Run | Yrd Mat Min Matter Collected 499 | 185 241 73 Remotely . | . . . Salvage Created 474 | . 381 93 Parts 28 | . 22 6 Haulers Intercepted . | . . . Recyclers Shooed 1 | . 1 . Parts Field Recycled . | . . . Retrieved Matter . | . . . Parts Self-Destructed . | . . . Prevented . | . . . Kills | -11 -10 -10 ------- Run | Yrd Mat Min Combat Hostiles Destroyed 11 | . 9 2 Guns 11 | . 9 2 Classes Destroyed 4 | . 4 . Recycler 1 | . 1 . Watcher 1 | . 1 . Swarmer 3 | . 3 . Grunt 8 | . 6 2 Best Kill Streak 8 | . 8 2 Combat Bots Only 7 | . 7 2 Max Kills in Single Turn 1 | . 1 1 Gunslinging . | . . . Exploded . | . . . Melee . | . . . Uniques/NPCs Destroyed . | . . . Combat | -11 -10 -10 -------- Run | Yrd Mat Min Hostile Shots Fired 62 | . 47 15 Missed 20 | . 13 7 Damage Taken 593 | . 479 114 Core 255 | . 180 75 Absorbed by Shields . | . . . Core Remaining (%) 100 | 100 . . Volleys Fired 36 | . 27 9 Largest 2 | . 2 2 Hottest 85 | . 80 85 Shots Fired 71 | . 53 18 Gun 67 | . 49 18 Cannon . | . . . Launcher 4 | . 4 . Special . | . . . Kinetic 47 | . 35 12 Thermal 20 | . 14 6 Explosive 4 | . 4 . Electromagnetic . | . . . Robot Hit Streak 7 | . 7 7 Robot Miss Streak 3 | . 3 1 Penetration Max . | . . . Secondary Targets 1 | . 1 . Max Gunslinging Chain 1 | . 1 . Shots Hit Robots 49 | . 36 13 Core Hits 24 | . 18 6 Critical Kills . | . . . Critical Parts Destroyed . | . . . Critical Strikes 1 | . 1 . Burn 1 | . 1 . Melee Attacks . | . . . Impact . | . . . Slashing . | . . . Piercing . | . . . Sneak Attacks . | . . . Combat Hostiles . | . . . Follow-up Attacks . | . . . Damage Inflicted 694 | . 570 124 Guns 548 | . 424 124 Cannons . | . . . Explosions 146 | . 146 . Melee . | . . . Ramming . | . . . Kinetic 369 | . 297 72 Thermal 179 | . 127 52 Explosive 146 | . 146 . Electromagnetic . | . . . Impact . | . . . Slashing . | . . . Piercing . | . . . Highest Corruption . | . . . Average Corruption . | . . . Corruption Purged . | . . . Corruption Blocked . | . . . Overload Shots . | . . . Overflow Damage . | . . . Projectiles . | . . . Explosions . | . . . Melee . | . . . Knockbacks . | . . . Impact . | . . . Kinetic . | . . . Secondary . | . . . Self-Inflicted Damage 24 | . 24 . Shots 1 | . 1 . Rammed . | . . . Targets Rammed . | . . . Kicked . | . . . Crushed . | . . . Highest Temperature 81 | . 81 78 Average Temperature 36 | . 38 30 Received Heat Transfer 210 | . 144 66 Siege Activations . | . . . Robots Corrupted . | . . . Combat Hostiles . | . . . Parts Fried . | . . . Impact Corruptions . | . . . Robots Melted . | . . . Combat Hostiles . | . . . Parts Melted 2 | . 2 . Heat Transferred 556 | . 444 112 Parts Sabotaged . | . . . Parts Stolen . | . . . Parts Stripped . | . . . Power Chain Reactions . | . . . Alert | -11 -10 -10 ------- Run | Yrd Mat Min Peak Influence 340 | . 340 90 Initial 50 | . . 50 Average 100 | . 114 81 Maximum Alert Level 1 | . 1 . Low Security (%) 81 | 100 76 100 Level 1 18 | . 23 . Level 2 . | . . . Level 3 . | . . . Level 4 . | . . . Level 5 . | . . . High Security . | . . . Max Security . | . . . Squads Dispatched 4 | . 4 . Investigation 2 | . 2 . Extermination . | . . . Reinforcement 2 | . 2 . Assault . | . . . Garrison . | . . . Intercept . | . . . Searches Triggered . | . . . Construction Impeded . | . . . Haulers Reinforced . | . . . Active Scanning Responses . | . . . Cargo Convoy Interrupts . | . . . Stealth | -11 -10 -10 --------- Run | Yrd Mat Min Distress Signals 1 | . 1 . Communications Jammed . | . . . Distress Signals . | . . . Times Spotted 18 | . 14 4 Peak Tracking Total 4 | . 4 2 Tactical Retreats 2 | . 2 . Traps | -11 -10 -10 ------- Run | Yrd Mat Min Traps Triggered 1 | . 1 . Indirectly . | . . . Trap Hack Attempts . | . . . Triggered . | . . . Disarmed . | . . . Reprogrammed . | . . . Reused . | . . . Traps Extracted . | . . . Installed . | . . . Triggered . | . . . Machines | -11 -10 -10 ---------- Run | Yrd Mat Min Machines Disabled 1 | . 1 . Max in Single Turn 1 | . 1 . Machines Repaired . | . . . Machines Dismantled . | . . . Machines Sabotaged . | . . . Overloaded Fab Kills . | . . . Hacking | -11 -10 -10 --------- Run | Yrd Mat Min Machines Accessed 4 | . 4 . Terminals 3 | . 3 . Fabricators . | . . . Repair Stations . | . . . Recycling Units 1 | . 1 . Scanalyzers . | . . . Garrison Access . | . . . Total Hacks 8 | . 8 . Successful 1 | . 1 . Failed 7 | . 7 . Catastrophic 1 | . 1 . Database Lockouts . | . . . Manual 7 | . 7 . Terminals 7 | . 7 . Fabricators . | . . . Repair Stations . | . . . Recycling Units 1 | . 1 . Scanalyzers . | . . . Garrison Access . | . . . Terminal Hacks . | . . . Fabricator Hacks . | . . . Repair Station Hacks . | . . . Recycling Unit Hacks 1 | . 1 . Report Inventory 1 | . 1 . Scanalyzer . | . . . Garrison Access Hacks . | . . . Unauthorized Hacks . | . . . Terminals . | . . . Fabricators . | . . . Repair Stations . | . . . Recycling Units . | . . . Scanalyzers . | . . . Garrison Access . | . . . Data Cores Recovered . | . . . Used . | . . . Hacking Detections 4 | . 4 . Full Trace Events 2 | . 2 . Feedback Events . | . . . Feedback Blocked . | . . . Robot Schematics Acquired . | . . . Robots Built . | . . . Authchips . | . . . Time . | . . . Total Robot Build Rating . | . . . Part Schematics Acquired . | . . . Parts Built . | . . . Authchips . | . . . Time . | . . . Total Part Build Rating . | . . . Parts Repaired . | . . . Time . | . . . Parts Recycled . | . . . Recycled Matter . | . . . Retrieved Matter . | . . . Retrieved Components . | . . . Parts Scanalyzed . | . . . Part Schematics Acquired . | . . . Parts Damaged . | . . . Bothacking | -11 -10 -10 ------------ Run | Yrd Mat Min Used RIF Installer . | . . . Robots Hacked . | . . . Non-combat . | . . . Combat . | . . . Robot Hacks Applied . | . . . Relay Couplers Released . | . . . Fabnet Peak Effective % . | . . . Robots Rewired . | . . . Allies Hacked . | . . . Hacks Repelled . | . . . Allies | -11 -10 -10 -------- Run | Yrd Mat Min Total Allies . | . . . Largest Group . | . . . Highest-Rated Group . | . . . Highest-Rated Ally . | . . . Total Orders . | . . . Ally Attacks . | . . . Total Damage . | . . . Kills . | . . . Allies Corrupted . | . . . Allies Melted . | . . . Intel | -11 -10 -10 ------- Run | Yrd Mat Min Robot Analysis Total . | . . . Derelict Logs Recovered . | . . . Drone Launches . | . . . Drone Recoveries . | . . . Exploration | -11 -10 -10 ------------- Run | Yrd Mat Min Turns Passed 519 | 48 407 64 Spaces Moved 380 | 44 243 93 Core 15 | 15 . . Treads . | . . . Legs . | . . . Wheels 173 | 29 144 . Hover . | . . . Flight 192 | . 99 93 Fastest Speed 37 | 50 37 37 Average Speed 66 | 82 74 37 Slowest Speed 120 | 100 120 37 Overloaded Moves . | . . . Propulsion Burnouts . | . . . Robots Hopped 1 | . 1 . Cave-ins Triggered . | . . . Exploration Rate (%) 25 | 4 46 26 Regions Visited 2 Branch Regions 1 Pre-discovered Areas . | . . . Known Exits Taken . | . . . Unknown Exits Taken 2 | 1 1 . Scrap Searched . | . . . Spaces Dug . | . . . Terrain Destroyed 21 | . 21 . Melee . | . . . Projectile . | . . . AOE 21 | . 21 . Terrain Rammed . | . . . Walls Destroyed . | . . . Machines Disabled . | . . . Actions | -11 -10 -10 --------- Run | Yrd Mat Min Total 574 | 53 414 107 Wait 127 | . 127 . Move 376 | 43 240 93 Hop 1 | . 1 . Pick Up 10 | 6 2 2 Fast Attach 6 | 2 4 . Attach 4 | 1 2 1 Detach . | . . . Swap 9 | 1 6 2 Drop 5 | . 5 . Fire 36 | . 27 9 Melee . | . . . Ram . | . . . Kick . | . . . Crush . | . . . Escape Stasis . | . . . Rewire . | . . . Trap . | . . . Miscellaneous . | . . . Route ------- -11/Scrapyard -10/Materials -10/Mines History --------- Turn | Location | Event 9 | -11/Scrapyard | Discovered new exit (range 15) 49 | -11/Scrapyard | Entered Materials 301 | -10/Materials | Build established: Mutant 378 | -10/Materials | Core integrity fell below 50% 412 | -10/Materials | Destroyed 7 combat bots 434 | -10/Materials | Discovered new exit (range 16) 456 | -10/Materials | Entered Mines 463 | -10/Mines | Core integrity fell below 20% 520 | -10/Mines | Destroyed by G-34 Mercenary with Small Laser Last Messages --------------- 00441_ A bubble of electromagnetic force engulfs the area. 00441_ Door malfunctions. 00441_ Chain reaction triggered in Lgt. Ion Engine. 00441_ A bubble of electromagnetic force engulfs the area. 00455_ U-05 Engineer lays Concrete. LOCATION=UNKNOWN GOAL=ESCAPE 00457_ T-07 Excavator is excavating. 00459_ G-34 Mercenary destroyed. 00460_ T-07 Excavator is excavating. 00460_ Core Extractor disabled. 00464_ Assault Rifle destroyed. 00474_ G-47 Trooper destroyed. 00477_ Acquired 44 matter. 00478_ Acquired 29 matter. 00479_ Acquired Imp. Heat Sink. 00480_ Acquired Particle Gun. Map ----- +----------------------------------------------------+ | ????"""?????????????????????????????? | | ???? ?????????????????????????????? | | ???? ?????????????????????????????? | | ???? ?????????????????????????????? | | ????# #?????????????????????????????? | | ????# #?????????????????????????????? | | ???? ?????????????????????????????? | | ????# ?????????????????????????????? | | ????# #?????????????????????????????? | | #???# #?????????????????????????????? | | ##### #?????????????????????????????? | | #?????????????????????????????? | | #### ####??????????????????????????? | | #??# #??????????????????????????? | | ##?#### #??????????????????????????? | | ##???# #??????????????????????????? | | #???# #??????????????????????????? | | #??# #??????????????????????????? | | #?# #????????###???????????????? | | #?# ###??????# ???????????????? | | #### ##?????# #???????????????? | | #####?# ##????# #???????????????? | | ??????# ##???# #??????###??????? | | ??????# """ ##??# #?????# ##?????? | | ??????# """ #### ###### #?????? | | ??????# """ g @ #?????? | | ??????## g ##?????? | | ???????## ########### ##??????? | | ????????## ##?????????## ##???????? | | ?????????###?????????????###????????? | | ????????????????????????????????????? | | | | | | | | | | | | | | | | | | | | | | | | | | | | | | | | | | | | | | | +----------------------------------------------------+ Best States ------------- Heat Dissipation 25 Energy Generation 10 Energy Capacity 250 Matter Stores 300 Matter Capacity 300 Sight Range 16 Terrain Scan Density 10 Evasion (%) 62 Item Schematics ----------------- None Robot Schematics ------------------ None Fabricated ------------ Nothing Alien Tech Used ----------------- None Achievements -------------- None Challenges ------------ None Game ------ Seed ThermoelectricSiegeWheel Manual? 0 Play Time 00:11:24 Cumulative 56.8 hours Start 2025.03.06 @ 21:52:14 End 2025.03.06 @ 22:03:16 Sessions 4 Manual Loads 0 Difficulty Rogue Special Mode None Game No. 6 Rogue 4 Adventurer 1 Explorer 1 Win Type - Total 3 Types 1/0/2/0/0/0/0/0/0 Lore% 18 Gallery% 29 Achievement% 32 Wizard Run 0 Options --------- Layout 1 ASCII 0 Keyboard 0 Movement Mouse Keybinds 0 Fullscreen 1 Font 32/SmallcapsGlow Map View 25x17 Zoom Use 62% Tactical HUD 1 Map Filters NONE Filters NONE Steam 1 RUN: 0afebf72-5fda-42ff-8073-27388e07097e